[Event "Titled Tuesday Blitz June 6 Early 2023"]
[White "Estrada Nieto, Julian"]
[Black "demon64fields"]
[WhiteFideId "5101018"]
[WhiteElo "2161"]
[BlackElo "2853"]
[Result "0-1"]
[Round "1"]
[TimeControl "180+2"]
[Date "2023.06.06"]
[WhiteClock "0:00:01"]
[BlackClock "0:01:01"]
[Board "43"]

1. e4 {[%clk 0:02:57]}  e6 {[%clk 0:02:58]} 2. d4 {[%clk 0:02:56]}  d5 {[%clk 0:02:59]} 3. Nd2 {[%clk 0:02:56]}  c5 {[%clk 0:02:59]} 4. exd5 {[%clk 0:02:56]}  exd5 {[%clk 0:02:59]} 5. Ngf3 {[%clk 0:02:56]}  Nc6 {[%clk 0:03:00]} 6. Bb5 {[%clk 0:02:55]}  Bd6 {[%clk 0:03:00]} 7. dxc5 {[%clk 0:02:55]}  Bxc5 {[%clk 0:03:00]} 8. Nb3 {[%clk 0:02:55]}  Bb6 {[%clk 0:03:01]} 9. O-O {[%clk 0:02:55]}  Ne7 {[%clk 0:03:00]} 10. Re1 {[%clk 0:02:55]}  O-O {[%clk 0:02:59]} 11. Be3 {[%clk 0:02:55]}  Bf5 {[%clk 0:02:59]} 12. Bd3 {[%clk 0:02:52]}  Bg6 {[%clk 0:02:49]} 13. c3 {[%clk 0:02:46]}  Bc7 {[%clk 0:02:45]} 14. Bc5 {[%clk 0:02:42]}  Re8 {[%clk 0:02:44]} 15. Nbd4 {[%clk 0:02:33]}  Qd7 {[%clk 0:02:42]} 16. Bxe7 {[%clk 0:02:28]}  Rxe7 {[%clk 0:02:40]} 17. Bxg6 {[%clk 0:02:28]}  hxg6 {[%clk 0:02:40]} 18. Rxe7 {[%clk 0:02:21]}  Qxe7 {[%clk 0:02:41]} 19. Qd3 {[%clk 0:02:20]}  Qf6 {[%clk 0:02:35]} 20. Re1 {[%clk 0:02:16]}  Rd8 {[%clk 0:02:35]} 21. g3 {[%clk 0:02:14]}  Bb6 {[%clk 0:02:35]} 22. Kg2 {[%clk 0:02:12]}  g5 {[%clk 0:02:25]} 23. h3 {[%clk 0:02:08]}  g6 {[%clk 0:02:25]} 24. Re2 {[%clk 0:01:55]}  Kg7 {[%clk 0:02:24]} 25. Nc2 {[%clk 0:01:42]}  Rd6 {[%clk 0:02:18]} 26. Ne3 {[%clk 0:01:33]}  d4 {[%clk 0:02:02]} 27. Ng4 {[%clk 0:01:33]}  Qf5 {[%clk 0:02:00]} 28. Re4 {[%clk 0:01:19]}  Re6 {[%clk 0:01:35]} 29. Nd2 {[%clk 0:01:15]}  dxc3 {[%clk 0:01:30]} 30. Qxc3+ {[%clk 0:01:14]}  f6 {[%clk 0:01:24]} 31. Rxe6 {[%clk 0:01:08]}  Qxe6 {[%clk 0:01:25]} 32. Qd3 {[%clk 0:00:59]}  Bd4 {[%clk 0:01:20]} 33. b3 {[%clk 0:00:54]}  f5 {[%clk 0:01:19]} 34. Ne3 {[%clk 0:00:49]}  Bxe3 {[%clk 0:01:19]} 35. Qxe3 {[%clk 0:00:46]}  Ne5 {[%clk 0:01:17]} 36. Qd4 {[%clk 0:00:42]}  Kf7 {[%clk 0:01:15]} 37. Kf1 {[%clk 0:00:31]}  Nc6 {[%clk 0:01:12]} 38. Qc4 {[%clk 0:00:29]}  a6 {[%clk 0:01:10]} 39. Qxe6+ {[%clk 0:00:25]}  Kxe6 {[%clk 0:01:11]} 40. Ke2 {[%clk 0:00:25]}  Ne5 {[%clk 0:01:07]} 41. f4 {[%clk 0:00:16]}  gxf4 {[%clk 0:01:07]} 42. gxf4 {[%clk 0:00:17]}  Nd7 {[%clk 0:01:06]} 43. Ke3 {[%clk 0:00:17]}  Nf6 {[%clk 0:01:06]} 44. Nc4 {[%clk 0:00:15]}  b5 {[%clk 0:01:03]} 45. Ne5 {[%clk 0:00:11]}  g5 {[%clk 0:01:03]} 46. Nd3 {[%clk 0:00:03]}  g4 {[%clk 0:01:02]} 47. hxg4 {[%clk 0:00:02]}  fxg4 {[%clk 0:01:03]} 48. Kf2 {[%clk 0:00:02]}  Kf5 {[%clk 0:01:02]} 49. Kg3 {[%clk 0:00:03]}  Ne4+ {[%clk 0:01:03]} 50. Kh4 {[%clk 0:00:01]}  Nc3 {[%clk 0:01:01]} 0-1


[Site "https://www.chess.com"]

[Event "Titled Tuesday Blitz June 6 Early 2023"]
[White "Dinu, Dumitru-Daniel"]
[Black "Beerdsen, Thomas"]
[WhiteFideId "1208403"]
[BlackFideId "1030108"]
[WhiteElo "2240"]
[BlackElo "2553"]
[Result "0-1"]
[Round "1"]
[TimeControl "180+2"]
[Date "2023.06.06"]
[WhiteClock "0:00:44"]
[BlackClock "0:02:18"]
[Board "45"]

1. e4 {[%clk 0:03:00]}  c5 {[%clk 0:02:57]} 2. b3 {[%clk 0:02:59]}  b6 {[%clk 0:02:54]} 3. Bb2 {[%clk 0:02:58]}  Bb7 {[%clk 0:02:55]} 4. Nc3 {[%clk 0:02:59]}  Nf6 {[%clk 0:02:54]} 5. e5 {[%clk 0:02:54]}  Ne4 {[%clk 0:02:52]} 6. Nxe4 {[%clk 0:02:50]}  Bxe4 {[%clk 0:02:53]} 7. Nf3 {[%clk 0:02:50]}  Nc6 {[%clk 0:02:53]} 8. Bc4 {[%clk 0:02:45]}  e6 {[%clk 0:02:52]} 9. O-O {[%clk 0:02:43]}  Be7 {[%clk 0:02:47]} 10. Re1 {[%clk 0:02:39]}  Bg6 {[%clk 0:02:45]} 11. d4 {[%clk 0:02:35]}  cxd4 {[%clk 0:02:42]} 12. Nxd4 {[%clk 0:02:35]}  O-O {[%clk 0:02:41]} 13. Nxc6 {[%clk 0:02:18]}  dxc6 {[%clk 0:02:42]} 14. Qf3 {[%clk 0:02:04]}  Qd2 {[%clk 0:02:40]} 15. Re2 {[%clk 0:01:46]}  Qg5 {[%clk 0:02:40]} 16. Qxc6 {[%clk 0:01:30]}  Rac8 {[%clk 0:02:41]} 17. Qf3 {[%clk 0:01:29]}  Bh5 {[%clk 0:02:40]} 18. Qe3 {[%clk 0:01:25]}  Bxe2 {[%clk 0:02:40]} 19. Qxe2 {[%clk 0:01:25]}  Rfd8 {[%clk 0:02:38]} 20. Rd1 {[%clk 0:01:23]}  Rxd1+ {[%clk 0:02:37]} 21. Qxd1 {[%clk 0:01:24]}  Rd8 {[%clk 0:02:37]} 22. Bd3 {[%clk 0:01:24]}  Bc5 {[%clk 0:02:34]} 23. Qe2 {[%clk 0:01:21]}  g6 {[%clk 0:02:32]} 24. a4 {[%clk 0:01:16]}  h5 {[%clk 0:02:30]} 25. Qf3 {[%clk 0:01:01]}  Bd4 {[%clk 0:02:28]} 26. Bxd4 {[%clk 0:01:00]}  Rxd4 {[%clk 0:02:28]} 27. Qa8+ {[%clk 0:01:00]}  Kg7 {[%clk 0:02:28]} 28. g3 {[%clk 0:01:00]}  h4 {[%clk 0:02:25]} 29. Qxa7 {[%clk 0:00:59]}  Qxe5 {[%clk 0:02:25]} 30. Qxb6 {[%clk 0:00:53]}  h3 {[%clk 0:02:19]} 31. Bf1 {[%clk 0:00:52]}  Rd1 {[%clk 0:02:19]} 32. Qb5 {[%clk 0:00:47]}  Qe4 {[%clk 0:02:18]} 33. f3 {[%clk 0:00:45]}  Qe3+ {[%clk 0:02:17]} 34. Kh1 {[%clk 0:00:44]}  Qxf3+ {[%clk 0:02:18]} 0-1


[Site "https://www.chess.com"]

[Event "Titled Tuesday Blitz June 6 Early 2023"]
[White "Yeletsky, Ivan"]
[Black "Pham, Le Thao Nguyen"]
[WhiteFideId "24180327"]
[BlackFideId "12401226"]
[WhiteElo "2380"]
[BlackElo "2286"]
[Result "1-0"]
[Round "1"]
[TimeControl "180+2"]
[Date "2023.06.06"]
[WhiteClock "0:00:05"]
[BlackClock "0:00:03"]
[Board "46"]

1. e4 {[%clk 0:02:58]}  c6 {[%clk 0:02:59]} 2. Nc3 {[%clk 0:02:57]}  d5 {[%clk 0:02:59]} 3. Qf3 {[%clk 0:02:58]}  dxe4 {[%clk 0:02:55]} 4. Nxe4 {[%clk 0:02:59]}  Nf6 {[%clk 0:02:55]} 5. Bc4 {[%clk 0:02:59]}  Qa5 {[%clk 0:02:46]} 6. Ne2 {[%clk 0:02:56]}  Qf5 {[%clk 0:02:41]} 7. Nxf6+ {[%clk 0:02:45]}  exf6 {[%clk 0:02:40]} 8. Qe3+ {[%clk 0:02:40]}  Qe5 {[%clk 0:02:35]} 9. Qb3 {[%clk 0:02:34]}  Qc7 {[%clk 0:02:26]} 10. a4 {[%clk 0:02:26]}  Bd6 {[%clk 0:02:09]} 11. Qe3+ {[%clk 0:02:21]}  Qe7 {[%clk 0:02:06]} 12. O-O {[%clk 0:02:19]}  O-O {[%clk 0:01:59]} 13. Qxe7 {[%clk 0:02:15]}  Bxe7 {[%clk 0:01:59]} 14. Ng3 {[%clk 0:02:10]}  Rd8 {[%clk 0:01:30]} 15. Re1 {[%clk 0:02:06]}  Bf8 {[%clk 0:01:27]} 16. d3 {[%clk 0:01:39]}  Bb4 {[%clk 0:00:51]} 17. Re4 {[%clk 0:01:32]}  Bd6 {[%clk 0:00:46]} 18. Bf4 {[%clk 0:01:25]}  Bxf4 {[%clk 0:00:45]} 19. Rxf4 {[%clk 0:01:26]}  Be6 {[%clk 0:00:40]} 20. Re1 {[%clk 0:01:22]}  Bxc4 {[%clk 0:00:35]} 21. Rxc4 {[%clk 0:01:21]}  Nd7 {[%clk 0:00:36]} 22. Rb4 {[%clk 0:01:14]}  b6 {[%clk 0:00:34]} 23. Nf5 {[%clk 0:01:11]}  Kf8 {[%clk 0:00:31]} 24. Rh4 {[%clk 0:01:00]}  h6 {[%clk 0:00:28]} 25. a5 {[%clk 0:01:00]}  Ne5 {[%clk 0:00:23]} 26. Ra4 {[%clk 0:00:44]}  b5 {[%clk 0:00:21]} 27. Rae4 {[%clk 0:00:44]}  c5 {[%clk 0:00:20]} 28. h4 {[%clk 0:00:40]}  h5 {[%clk 0:00:19]} 29. b4 {[%clk 0:00:29]}  cxb4 {[%clk 0:00:19]} 30. Rxb4 {[%clk 0:00:29]}  a6 {[%clk 0:00:19]} 31. Rbe4 {[%clk 0:00:28]}  g6 {[%clk 0:00:18]} 32. Ne3 {[%clk 0:00:25]}  Rd7 {[%clk 0:00:17]} 33. f4 {[%clk 0:00:20]}  Nc6 {[%clk 0:00:17]} 34. f5 {[%clk 0:00:21]}  Rad8 {[%clk 0:00:14]} 35. g4 {[%clk 0:00:17]}  hxg4 {[%clk 0:00:14]} 36. Rxg4 {[%clk 0:00:18]}  Ne5 {[%clk 0:00:13]} 37. Rg3 {[%clk 0:00:18]}  Rd4 {[%clk 0:00:12]} 38. Rf1 {[%clk 0:00:16]}  R8d6 {[%clk 0:00:09]} 39. fxg6 {[%clk 0:00:15]}  fxg6 {[%clk 0:00:10]} 40. h5 {[%clk 0:00:15]}  gxh5 {[%clk 0:00:11]} 41. Nf5 {[%clk 0:00:15]}  Kf7 {[%clk 0:00:08]} 42. Nxd6+ {[%clk 0:00:10]}  Rxd6 {[%clk 0:00:09]} 43. Rf5 {[%clk 0:00:11]}  h4 {[%clk 0:00:08]} 44. Rh3 {[%clk 0:00:09]}  Rc6 {[%clk 0:00:08]} 45. d4 {[%clk 0:00:07]}  Nc4 {[%clk 0:00:07]} 46. Rxh4 {[%clk 0:00:07]}  Nxa5 {[%clk 0:00:07]} 47. Rf2 {[%clk 0:00:05]}  Rd6 {[%clk 0:00:06]} 48. Rh7+ {[%clk 0:00:04]}  Ke6 {[%clk 0:00:06]} 49. Rh6 {[%clk 0:00:04]}  Kf7 {[%clk 0:00:05]} 50. Rh7+ {[%clk 0:00:03]}  Ke6 {[%clk 0:00:05]} 51. Rc7 {[%clk 0:00:04]}  Nc4 {[%clk 0:00:05]} 52. c3 {[%clk 0:00:03]}  Kd5 {[%clk 0:00:04]} 53. Rc5+ {[%clk 0:00:03]}  Ke6 {[%clk 0:00:03]} 54. Re2+ {[%clk 0:00:04]}  Kf7 {[%clk 0:00:03]} 55. Kf2 {[%clk 0:00:05]}  Rb6 {[%clk 0:00:01]} 56. Rc7+ {[%clk 0:00:05]}  Kg6 {[%clk 0:00:02]} 57. Ree7 {[%clk 0:00:02]}  Kf5 {[%clk 0:00:02]} 58. Rg7 {[%clk 0:00:02]}  Ke6 {[%clk 0:00:02]} 59. Rge7+ {[%clk 0:00:02]}  Kf5 {[%clk 0:00:02]} 60. Red7 {[%clk 0:00:03]}  Kg6 {[%clk 0:00:02]} 61. d5 {[%clk 0:00:03]}  Ne5 {[%clk 0:00:02]} 62. Re7 {[%clk 0:00:03]}  Kf5 {[%clk 0:00:03]} 63. Ke3 {[%clk 0:00:02]}  Rd6 {[%clk 0:00:03]} 64. Kd4 {[%clk 0:00:02]}  a5 {[%clk 0:00:03]} 65. Kc5 {[%clk 0:00:03]}  Ra6 {[%clk 0:00:03]} 66. Ra7 {[%clk 0:00:03]}  Rxa7 {[%clk 0:00:03]} 67. Rxa7 {[%clk 0:00:04]}  a4 {[%clk 0:00:03]} 68. Kxb5 {[%clk 0:00:04]}  Ke4 {[%clk 0:00:03]} 69. c4 {[%clk 0:00:05]}  f5 {[%clk 0:00:03]} 70. Rxa4 {[%clk 0:00:05]}  Kd4 {[%clk 0:00:03]} 71. d6 {[%clk 0:00:04]}  f4 {[%clk 0:00:02]} 72. c5+ {[%clk 0:00:05]}  Kd5 {[%clk 0:00:03]} 73. Rxf4 {[%clk 0:00:05]} 1-0


[Site "https://www.chess.com"]

[Event "Titled Tuesday Blitz June 6 Early 2023"]
[White "Harsh Suresh"]
[Black "Zaitsev, Alexander"]
[WhiteFideId "45018464"]
[BlackFideId "4164490"]
[WhiteElo "2209"]
[BlackElo "2373"]
[Result "0-1"]
[Round "1"]
[TimeControl "180+2"]
[Date "2023.06.06"]
[WhiteClock "0:00:40"]
[BlackClock "0:00:26"]
[Board "50"]

1. e4 {[%clk 0:02:56]}  c5 {[%clk 0:02:59]} 2. Nc3 {[%clk 0:02:54]}  Nc6 {[%clk 0:02:59]} 3. Bb5 {[%clk 0:02:54]}  Nd4 {[%clk 0:02:58]} 4. Bc4 {[%clk 0:02:54]}  g6 {[%clk 0:02:57]} 5. Nf3 {[%clk 0:02:55]}  Bg7 {[%clk 0:02:57]} 6. Nxd4 {[%clk 0:02:56]}  cxd4 {[%clk 0:02:56]} 7. Qf3 {[%clk 0:02:56]}  Nh6 {[%clk 0:02:56]} 8. d3 {[%clk 0:02:56]}  O-O {[%clk 0:02:39]} 9. Ne2 {[%clk 0:02:52]}  Ng4 {[%clk 0:02:26]} 10. Qxg4 {[%clk 0:02:52]}  d5 {[%clk 0:02:25]} 11. Qf3 {[%clk 0:02:52]}  dxc4 {[%clk 0:02:25]} 12. dxc4 {[%clk 0:02:53]}  Be6 {[%clk 0:02:04]} 13. Qd3 {[%clk 0:02:50]}  Rc8 {[%clk 0:01:57]} 14. b3 {[%clk 0:02:50]}  f5 {[%clk 0:01:51]} 15. e5 {[%clk 0:02:30]}  Bxe5 {[%clk 0:01:22]} 16. Nf4 {[%clk 0:02:30]}  Bf7 {[%clk 0:01:18]} 17. O-O {[%clk 0:02:29]}  Bg7 {[%clk 0:01:14]} 18. Ba3 {[%clk 0:02:27]}  Re8 {[%clk 0:01:13]} 19. Rad1 {[%clk 0:02:04]}  e5 {[%clk 0:01:14]} 20. Nh3 {[%clk 0:02:03]}  e4 {[%clk 0:01:12]} 21. Qg3 {[%clk 0:02:00]}  Be5 {[%clk 0:01:11]} 22. f4 {[%clk 0:01:54]}  Bf6 {[%clk 0:01:01]} 23. Bb2 {[%clk 0:01:52]}  b5 {[%clk 0:00:57]} 24. Ng5 {[%clk 0:01:23]}  bxc4 {[%clk 0:00:54]} 25. Nxf7 {[%clk 0:01:22]}  Kxf7 {[%clk 0:00:54]} 26. Qh3 {[%clk 0:01:23]}  Kg8 {[%clk 0:00:52]} 27. g4 {[%clk 0:01:21]}  c3 {[%clk 0:00:46]} 28. Ba3 {[%clk 0:01:17]}  Qd7 {[%clk 0:00:44]} 29. g5 {[%clk 0:00:59]}  Bg7 {[%clk 0:00:44]} 30. Qg2 {[%clk 0:00:57]}  d3 {[%clk 0:00:41]} 31. h4 {[%clk 0:00:55]}  d2 {[%clk 0:00:39]} 32. Qe2 {[%clk 0:00:54]}  e3 {[%clk 0:00:32]} 33. Rf3 {[%clk 0:00:54]}  Re4 {[%clk 0:00:31]} 34. h5 {[%clk 0:00:50]}  gxh5 {[%clk 0:00:31]} 35. Rh3 {[%clk 0:00:50]}  Rxf4 {[%clk 0:00:30]} 36. Qxh5 {[%clk 0:00:50]}  Rg4+ {[%clk 0:00:28]} 37. Kh2 {[%clk 0:00:40]}  Be5+ {[%clk 0:00:28]} 38. Kh1 {[%clk 0:00:39]}  Qb7+ {[%clk 0:00:26]} 39. Rf3 {[%clk 0:00:40]}  Qxf3# {[%clk 0:00:26]} 0-1


[Site "https://www.chess.com"]

[Event "Titled Tuesday Blitz June 6 Early 2023"]
[White "Hambleton, Aman"]
[Black "Nemec, Jachym"]
[WhiteFideId "2606577"]
[BlackFideId "23716525"]
[WhiteElo "2511"]
[BlackElo "2347"]
[Result "1-0"]
[Round "1"]
[TimeControl "180+2"]
[Date "2023.06.06"]
[WhiteClock "0:00:10"]
[BlackClock "0:01:24"]
[Board "52"]

1. d4 {[%clk 0:03:00]}  Nf6 {[%clk 0:02:51]} 2. Bf4 {[%clk 0:02:59]}  d5 {[%clk 0:02:50]} 3. e3 {[%clk 0:02:59]}  c5 {[%clk 0:02:50]} 4. c3 {[%clk 0:02:59]}  Nc6 {[%clk 0:02:50]} 5. Nd2 {[%clk 0:02:59]}  cxd4 {[%clk 0:02:46]} 6. exd4 {[%clk 0:03:00]}  Bf5 {[%clk 0:02:46]} 7. Qb3 {[%clk 0:03:00]}  Na5 {[%clk 0:02:43]} 8. Qa4+ {[%clk 0:02:53]}  Bd7 {[%clk 0:02:43]} 9. Qc2 {[%clk 0:02:44]}  Rc8 {[%clk 0:02:41]} 10. Bd3 {[%clk 0:02:42]}  Nc6 {[%clk 0:02:40]} 11. Qb3 {[%clk 0:02:40]}  Na5 {[%clk 0:02:39]} 12. Qd1 {[%clk 0:02:37]}  Qb6 {[%clk 0:02:39]} 13. Rb1 {[%clk 0:02:34]}  e6 {[%clk 0:02:38]} 14. Ngf3 {[%clk 0:02:32]}  Bd6 {[%clk 0:02:38]} 15. Bxd6 {[%clk 0:02:23]}  Qxd6 {[%clk 0:02:38]} 16. Ne5 {[%clk 0:02:24]}  Nc6 {[%clk 0:02:31]} 17. Qe2 {[%clk 0:02:23]}  Ng8 {[%clk 0:02:20]} 18. f4 {[%clk 0:01:53]}  Nge7 {[%clk 0:02:19]} 19. O-O {[%clk 0:01:53]}  O-O {[%clk 0:02:16]} 20. Rf3 {[%clk 0:01:20]}  g6 {[%clk 0:02:06]} 21. Re1 {[%clk 0:01:14]}  Be8 {[%clk 0:02:05]} 22. Rh3 {[%clk 0:00:55]}  f6 {[%clk 0:02:02]} 23. Nxc6 {[%clk 0:00:31]}  Rxc6 {[%clk 0:01:59]} 24. Qf2 {[%clk 0:00:25]}  Bd7 {[%clk 0:01:55]} 25. Rhe3 {[%clk 0:00:25]}  Rcc8 {[%clk 0:01:53]} 26. g4 {[%clk 0:00:20]}  Rce8 {[%clk 0:01:50]} 27. Qg3 {[%clk 0:00:20]}  Qb8 {[%clk 0:01:46]} 28. Nf3 {[%clk 0:00:13]}  Nc6 {[%clk 0:01:43]} 29. g5 {[%clk 0:00:11]}  fxg5 {[%clk 0:01:43]} 30. fxg5 {[%clk 0:00:10]}  Qxg3+ {[%clk 0:01:42]} 31. hxg3 {[%clk 0:00:11]}  Re7 {[%clk 0:01:40]} 32. Ne5 {[%clk 0:00:07]}  Nxe5 {[%clk 0:01:39]} 33. Rxe5 {[%clk 0:00:07]}  Rf3 {[%clk 0:01:36]} 34. R1e3 {[%clk 0:00:06]}  Rxe3 {[%clk 0:01:36]} 35. Rxe3 {[%clk 0:00:07]}  Kf8 {[%clk 0:01:35]} 36. Rf3+ {[%clk 0:00:05]}  Rf7 {[%clk 0:01:36]} 37. Kf2 {[%clk 0:00:05]}  Ke7 {[%clk 0:01:35]} 38. Rxf7+ {[%clk 0:00:03]}  Kxf7 {[%clk 0:01:35]} 39. Ke3 {[%clk 0:00:03]}  Ke7 {[%clk 0:01:25]} 40. b3 {[%clk 0:00:03]}  a5 {[%clk 0:01:25]} 41. Kf4 {[%clk 0:00:02]}  b6 {[%clk 0:01:25]} 42. Ke5 {[%clk 0:00:02]}  Be8 {[%clk 0:01:23]} 43. c4 {[%clk 0:00:02]}  dxc4 {[%clk 0:01:23]} 44. bxc4 {[%clk 0:00:03]}  Bd7 {[%clk 0:01:21]} 45. a3 {[%clk 0:00:03]}  Ba4 {[%clk 0:01:21]} 46. Be2 {[%clk 0:00:03]}  Bb3 {[%clk 0:01:20]} 47. c5 {[%clk 0:00:03]}  bxc5 {[%clk 0:01:19]} 48. dxc5 {[%clk 0:00:04]}  Ba4 {[%clk 0:01:20]} 49. Bf3 {[%clk 0:00:04]}  Kd7 {[%clk 0:01:20]} 50. Be4 {[%clk 0:00:04]}  Bc6 {[%clk 0:01:17]} 51. Bd3 {[%clk 0:00:02]}  a4 {[%clk 0:01:17]} 52. Bc4 {[%clk 0:00:02]}  Bf3 {[%clk 0:01:15]} 53. Bxe6+ {[%clk 0:00:02]}  Ke7 {[%clk 0:01:16]} 54. Bg8 {[%clk 0:00:03]}  Bh5 {[%clk 0:01:13]} 55. Bxh7 {[%clk 0:00:02]}  Kf7 {[%clk 0:01:14]} 56. Kd6 {[%clk 0:00:03]}  Bf3 {[%clk 0:01:13]} 57. c6 {[%clk 0:00:04]}  Kg7 {[%clk 0:01:13]} 58. c7 {[%clk 0:00:04]}  Bg4 {[%clk 0:01:14]} 59. Ke7 {[%clk 0:00:03]}  Kxh7 {[%clk 0:01:14]} 60. Kd8 {[%clk 0:00:04]}  Kg7 {[%clk 0:01:14]} 61. c8=Q {[%clk 0:00:05]}  Bxc8 {[%clk 0:01:15]} 62. Kxc8 {[%clk 0:00:06]}  Kf7 {[%clk 0:01:16]} 63. Kb7 {[%clk 0:00:03]}  Ke6 {[%clk 0:01:16]} 64. Kb6 {[%clk 0:00:04]}  Kf5 {[%clk 0:01:17]} 65. Kb5 {[%clk 0:00:04]}  Kxg5 {[%clk 0:01:18]} 66. Kxa4 {[%clk 0:00:05]}  Kg4 {[%clk 0:01:18]} 67. Kb4 {[%clk 0:00:05]}  Kxg3 {[%clk 0:01:19]} 68. a4 {[%clk 0:00:06]}  g5 {[%clk 0:01:19]} 69. a5 {[%clk 0:00:07]}  g4 {[%clk 0:01:20]} 70. a6 {[%clk 0:00:08]}  Kf2 {[%clk 0:01:21]} 71. a7 {[%clk 0:00:09]}  g3 {[%clk 0:01:22]} 72. a8=Q {[%clk 0:00:10]}  g2 {[%clk 0:01:23]} 73. Qf8+ {[%clk 0:00:10]}  Kg3 {[%clk 0:01:23]} 74. Qg7+ {[%clk 0:00:10]}  Kf3 {[%clk 0:01:24]} 75. Qd4 {[%clk 0:00:10]}  Kg3 {[%clk 0:01:24]} 76. Qg1 {[%clk 0:00:10]} 1-0


[Site "https://www.chess.com"]

[Event "Titled Tuesday Blitz June 6 Early 2023"]
[White "Ilamparthi A R"]
[Black "Hristodoulou, Panagiotis"]
[WhiteFideId "45015775"]
[BlackFideId "4214340"]
[WhiteElo "2348"]
[BlackElo "2272"]
[Result "1-0"]
[Round "1"]
[TimeControl "180+2"]
[Date "2023.06.06"]
[WhiteClock "0:02:08"]
[BlackClock "0:00:05"]
[Board "54"]

1. e4 {[%clk 0:02:57]}  e5 {[%clk 0:00:42]} 2. Nf3 {[%clk 0:02:56]}  Nc6 {[%clk 0:00:41]} 3. d3 {[%clk 0:02:55]}  Nf6 {[%clk 0:00:41]} 4. g3 {[%clk 0:02:55]}  d5 {[%clk 0:00:41]} 5. exd5 {[%clk 0:02:55]}  Nxd5 {[%clk 0:00:42]} 6. Bg2 {[%clk 0:02:56]}  Bc5 {[%clk 0:00:43]} 7. O-O {[%clk 0:02:55]}  O-O {[%clk 0:00:43]} 8. Nc3 {[%clk 0:02:53]}  Nxc3 {[%clk 0:00:43]} 9. bxc3 {[%clk 0:02:54]}  Re8 {[%clk 0:00:43]} 10. Nd2 {[%clk 0:02:48]}  Bb6 {[%clk 0:00:41]} 11. Rb1 {[%clk 0:02:40]}  Be6 {[%clk 0:00:41]} 12. a4 {[%clk 0:02:40]}  Bd5 {[%clk 0:00:36]} 13. Ne4 {[%clk 0:02:34]}  f5 {[%clk 0:00:24]} 14. c4 {[%clk 0:02:34]}  Bxe4 {[%clk 0:00:21]} 15. dxe4 {[%clk 0:02:34]}  f4 {[%clk 0:00:20]} 16. gxf4 {[%clk 0:02:28]}  Qf6 {[%clk 0:00:19]} 17. c5 {[%clk 0:02:25]}  Bxc5 {[%clk 0:00:18]} 18. Qd5+ {[%clk 0:02:24]}  Kh8 {[%clk 0:00:16]} 19. Qxc5 {[%clk 0:02:24]}  Nd4 {[%clk 0:00:14]} 20. fxe5 {[%clk 0:02:09]}  Ne2+ {[%clk 0:00:04]} 21. Kh1 {[%clk 0:02:09]}  Rxe5 {[%clk 0:00:05]} 22. Qe3 {[%clk 0:02:08]} 1-0


[Site "https://www.chess.com"]

[Event "Titled Tuesday Blitz June 6 Early 2023"]
[White "Petrosyan, Manuel"]
[Black "i_like_explosions"]
[WhiteFideId "13300857"]
[WhiteElo "2576"]
[BlackElo "2445"]
[Result "1/2-1/2"]
[Round "1"]
[TimeControl "180+2"]
[Date "2023.06.06"]
[WhiteClock "0:00:04"]
[BlackClock "0:00:09"]
[Board "56"]

1. e4 {[%clk 0:02:59]}  c5 {[%clk 0:02:59]} 2. Nf3 {[%clk 0:02:59]}  Nc6 {[%clk 0:02:59]} 3. Bb5 {[%clk 0:02:59]}  e6 {[%clk 0:03:00]} 4. O-O {[%clk 0:02:55]}  Nge7 {[%clk 0:03:00]} 5. Re1 {[%clk 0:02:56]}  a6 {[%clk 0:02:59]} 6. Bf1 {[%clk 0:02:55]}  d5 {[%clk 0:03:00]} 7. exd5 {[%clk 0:02:54]}  Nxd5 {[%clk 0:03:00]} 8. d4 {[%clk 0:02:35]}  Nf6 {[%clk 0:03:00]} 9. Be3 {[%clk 0:02:24]}  cxd4 {[%clk 0:03:00]} 10. Nxd4 {[%clk 0:02:22]}  Bd7 {[%clk 0:03:00]} 11. c4 {[%clk 0:02:06]}  Be7 {[%clk 0:02:51]} 12. Nc3 {[%clk 0:02:06]}  O-O {[%clk 0:02:51]} 13. h3 {[%clk 0:01:58]}  Nxd4 {[%clk 0:02:51]} 14. Qxd4 {[%clk 0:01:56]}  Bc6 {[%clk 0:02:51]} 15. Rad1 {[%clk 0:01:51]}  Qa5 {[%clk 0:02:39]} 16. a3 {[%clk 0:01:39]}  Rad8 {[%clk 0:02:32]} 17. Qb6 {[%clk 0:01:39]}  Qh5 {[%clk 0:02:32]} 18. Qc7 {[%clk 0:01:28]}  Rxd1 {[%clk 0:02:01]} 19. Rxd1 {[%clk 0:01:28]}  Re8 {[%clk 0:01:50]} 20. b4 {[%clk 0:01:17]}  Ne4 {[%clk 0:01:45]} 21. Ne2 {[%clk 0:01:12]}  Ng5 {[%clk 0:01:02]} 22. Qg3 {[%clk 0:00:51]}  Ne4 {[%clk 0:00:53]} 23. Qg4 {[%clk 0:00:51]}  Qxg4 {[%clk 0:00:52]} 24. hxg4 {[%clk 0:00:52]}  Rd8 {[%clk 0:00:34]} 25. Rxd8+ {[%clk 0:00:50]}  Bxd8 {[%clk 0:00:35]} 26. f3 {[%clk 0:00:49]}  Nd6 {[%clk 0:00:25]} 27. Nd4 {[%clk 0:00:49]}  Bd7 {[%clk 0:00:24]} 28. c5 {[%clk 0:00:49]}  Nb5 {[%clk 0:00:24]} 29. Nxb5 {[%clk 0:00:28]}  Bxb5 {[%clk 0:00:25]} 30. Bf4 {[%clk 0:00:18]}  Kf8 {[%clk 0:00:22]} 31. Kf2 {[%clk 0:00:18]}  Ke8 {[%clk 0:00:22]} 32. Be2 {[%clk 0:00:15]}  Bxe2 {[%clk 0:00:20]} 33. Kxe2 {[%clk 0:00:15]}  Kd7 {[%clk 0:00:21]} 34. Kd3 {[%clk 0:00:16]}  Kc6 {[%clk 0:00:21]} 35. Kc4 {[%clk 0:00:16]}  b6 {[%clk 0:00:17]} 36. cxb6 {[%clk 0:00:14]}  Bxb6 {[%clk 0:00:17]} 37. a4 {[%clk 0:00:15]}  g6 {[%clk 0:00:13]} 38. b5+ {[%clk 0:00:13]}  axb5+ {[%clk 0:00:14]} 39. axb5+ {[%clk 0:00:14]}  Kb7 {[%clk 0:00:14]} 40. Bd6 {[%clk 0:00:13]}  Bf2 {[%clk 0:00:12]} 41. Bc5 {[%clk 0:00:13]}  Bg3 {[%clk 0:00:12]} 42. Kd3 {[%clk 0:00:13]}  h5 {[%clk 0:00:10]} 43. gxh5 {[%clk 0:00:12]}  gxh5 {[%clk 0:00:11]} 44. Bd4 {[%clk 0:00:09]}  f5 {[%clk 0:00:10]} 45. Bc5 {[%clk 0:00:08]}  Kc7 {[%clk 0:00:10]} 46. Kc4 {[%clk 0:00:07]}  Kb7 {[%clk 0:00:10]} 47. Be3 {[%clk 0:00:07]}  Kc7 {[%clk 0:00:10]} 48. Kd4 {[%clk 0:00:06]}  Bd6 {[%clk 0:00:07]} 49. Kd3 {[%clk 0:00:05]}  Kb7 {[%clk 0:00:07]} 50. Kc4 {[%clk 0:00:05]}  Bc7 {[%clk 0:00:07]} 51. Bc5 {[%clk 0:00:05]}  Be5 {[%clk 0:00:08]} 52. Bd4 {[%clk 0:00:06]}  Bc7 {[%clk 0:00:08]} 53. Bc3 {[%clk 0:00:06]}  Bb8 {[%clk 0:00:08]} 54. Kc5 {[%clk 0:00:05]}  Bc7 {[%clk 0:00:08]} 55. Bd2 {[%clk 0:00:05]}  Bb8 {[%clk 0:00:08]} 56. b6 {[%clk 0:00:05]}  Bg3 {[%clk 0:00:08]} 57. Be3 {[%clk 0:00:05]}  Bb8 {[%clk 0:00:08]} 58. Kc4 {[%clk 0:00:04]}  Be5 {[%clk 0:00:08]} 59. Bc5 {[%clk 0:00:04]}  Bb8 {[%clk 0:00:08]} 60. Bd4 {[%clk 0:00:05]}  Bg3 {[%clk 0:00:08]} 61. Kd3 {[%clk 0:00:05]}  Bb8 {[%clk 0:00:07]} 62. Be3 {[%clk 0:00:05]}  Be5 {[%clk 0:00:07]} 63. f4 {[%clk 0:00:06]}  Bd6 {[%clk 0:00:07]} 64. Ke2 {[%clk 0:00:06]}  Kc6 {[%clk 0:00:07]} 65. Kf3 {[%clk 0:00:06]}  Bb4 {[%clk 0:00:05]} 66. Kg3 {[%clk 0:00:06]}  Ba5 {[%clk 0:00:05]} 67. Kh4 {[%clk 0:00:05]}  Bxb6 {[%clk 0:00:06]} 68. Bxb6 {[%clk 0:00:05]}  Kxb6 {[%clk 0:00:07]} 69. Kxh5 {[%clk 0:00:06]}  Kc6 {[%clk 0:00:07]} 70. Kg5 {[%clk 0:00:06]}  Kc5 {[%clk 0:00:07]} 71. Kf6 {[%clk 0:00:06]}  Kd6 {[%clk 0:00:07]} 72. g3 {[%clk 0:00:06]}  Kd7 {[%clk 0:00:08]} 73. Kf7 {[%clk 0:00:06]}  Kd6 {[%clk 0:00:07]} 74. Kf6 {[%clk 0:00:06]}  Kd7 {[%clk 0:00:08]} 75. Kg6 {[%clk 0:00:04]}  Ke7 {[%clk 0:00:08]} 76. Kg7 {[%clk 0:00:04]}  Kd7 {[%clk 0:00:08]} 77. Kf7 {[%clk 0:00:05]}  Kd6 {[%clk 0:00:09]} 78. Kf6 {[%clk 0:00:04]} 1/2-1/2


[Site "https://www.chess.com"]